bitfinex-derivatives/quotes_SOLF0:USTF0_20260129
["timestamp","ask_amount","ask_price","bid_price","bid_amount"]
[1769715337999,6.75250078,116.5,116.41,120.4743]
[1769715338200,6.75250078,116.5,116.44,7.7424]
[1769715338201,78.67577078,116.5,116.44,7.7424]
[1769715339013,86.41467078,116.5,116.41,146.81398744]
[1769715339315,78.67577078,116.5,116.39,146.83448744]
[1769715339512,71.92327,116.47,116.39,146.83448744]
[1769715339811,2.83660149,116.46,116.39,149.67108893]
[1769715340013,2.83660149,116.46,116.4,29.17628893]
[1769715341215,2.83660149,116.45,116.41,7.7448]
[1769715341414,2.83660149,116.44,116.38,123.33750149]
[1769715341717,2.83660149,116.42,116.37,26.33968744]
[1769715342215,2.83660149,116.41,116.35,2.83660149]
[1769715342413,2.83660149,116.41,116.35,29.17628893]
[1769715342715,2.83660149,116.42,116.35,29.17628893]
[1769715342915,2.83660149,116.42,116.36,2.83660149]
[1769715343308,2.83660149,116.42,116.37,7.7474]
[1769715343508,71.92327,116.43,116.37,7.7474]
[1769715345521,71.92327,116.46,116.38,146.84528744]
[1769715345704,6.66089911,116.45,116.38,146.84528744]
[1769715345908,71.92327,116.46,116.38,146.84528744]
[1769715346107,6.66089536,116.45,116.38,146.84528744]
[1769715346314,71.92327,116.46,116.4,7.7454]
[1769715346617,71.92327,116.46,116.39,146.83488744]
[1769715347001,78.58546892,116.45,116.37,146.85508744]
[1769715347202,71.92327,116.45,116.37,146.85508744]
[1769715347407,71.92327,116.45,116.37,34.08658744]
[1769715347817,78.68135584,116.44,116.35,241.0604]
[1769715348011,86.42425584,116.44,116.36,7.7475]
[1769715348317,78.58728282,116.43,116.36,7.7475]
[1769715348611,71.92327,116.43,116.35,146.86938744]
[1769715348821,6.66395022,116.42,116.35,146.86938744]
[1769715349114,71.92327,116.43,116.35,146.86938744]
[1769715349316,6.66478365,116.42,116.35,146.86938744]
[1769715349509,71.92327,116.43,116.35,146.86938744]
[1769715349706,6.66483082,116.42,116.38,7.7467]
[1769715349911,71.92327,116.43,116.35,146.86938744]
[1769715350110,6.66398813,116.42,116.35,146.86938744]
[1769715350315,71.92327,116.42,116.35,146.86938744]
[1769715350515,71.92327,116.42,116.36,7.7475]
[1769715351111,78.68135584,116.42,116.36,7.7475]
[1769715351513,6.66676751,116.41,116.36,7.7475]
[1769715351712,78.68135584,116.42,116.36,7.7475]
[1769715352018,78.59000994,116.41,116.35,7.7488]
[1769715352216,71.92327,116.41,116.35,7.7488]
[1769715352718,71.92327,116.41,116.36,7.7481]
[1769715355115,71.92327,116.43,116.36,34.08778744]
[1769715355418,78.59395404,116.42,116.36,7.7481]
[1769715355623,71.92327,116.42,116.36,7.7481]
[1769715357413,79.99119906,116.45,116.37,26.40598303]
[1769715357616,6.67247521,116.44,116.38,26.40598303]
[1769715357815,72.24859906,116.45,116.38,26.40598303]
[1769715358218,72.24859906,116.45,116.4,7.7453]
[1769715360815,86.7468849,116.48,116.41,7.7448]
[1769715361015,86.7468849,116.48,116.39,146.89968303]
[1769715361016,6.6739368,116.47,116.39,146.89968303]
[1769715361218,6.6739368,116.46,116.39,146.89968303]
[1769715361522,72.24859906,116.46,116.39,26.40598303]
[1769715362022,72.24859906,116.46,116.39,34.15158303]
[1769715362326,78.92353329,116.45,116.39,7.7456]
[1769715362625,72.24859906,116.45,116.39,7.7456]
[1769715362816,72.24859906,116.45,116.4,7.7453]
[1769715363925,72.24859906,116.43,116.35,26.40598303]
[1769715364118,78.92565698,116.42,116.35,26.40598303]
[1769715364422,72.24859906,116.42,116.35,26.40598303]
[1769715364622,72.24859906,116.4,116.35,7.7483]
[1769715366815,72.24859906,116.4,116.33,26.40598303]
[1769715366816,79.99409906,116.4,116.33,34.15558303]
[1769715367020,78.92662363,116.39,116.33,34.15558303]
[1769715367219,72.24859906,116.39,116.33,34.15558303]
[1769715367625,72.24859906,116.39,116.33,7.7496]
[1769715369729,72.24859906,116.39,116.34,7.7494]
[1769715370421,72.24859906,116.39,116.29,146.99708303]
[1769715370422,78.92105506,116.38,116.29,146.99708303]
[1769715370729,72.24859906,116.38,116.3,146.99268303]
[1769715371931,72.24859906,116.41,116.32,26.40598303]
[1769715372232,78.91850746,116.4,116.32,26.40598303]
[1769715372427,78.91850746,116.39,116.32,26.40598303]
[1769715372731,72.24859906,116.39,116.32,26.40598303]
[1769715373031,72.24859906,116.39,116.31,120.576]
[1769715373232,72.24859906,116.39,116.31,146.98198303]
[1769715374128,72.24859906,116.39,116.34,7.7494]
[1769715377437,72.24859906,116.39,116.31,146.98198303]
[1769715377827,78.91500025,116.38,116.31,146.98198303]
[1769715378033,72.24859906,116.38,116.31,146.98198303]
[1769715378337,72.24859906,116.38,116.33,7.7501]
[1769715382330,72.24859906,116.41,116.35,146.94128303]
[1769715383238,14.7286325,116.47,116.38,160.06628303]
[1769715383629,14.72510546,116.48,116.38,160.06628303]
[1769715384429,6.7545588,116.46,116.37,120.5138]
[1769715384830,6.7545588,116.46,116.4,7.7454]
[1769715385028,72.24859906,116.45,116.4,7.7454]
[1769715385230,72.24859906,116.45,116.38,160.06098303]
[1769715385632,75.08583799,116.45,116.38,162.89822196]
[1769715386131,72.24859906,116.45,116.38,162.89822196]
[1769715386329,75.08583799,116.45,116.38,162.89822196]
[1769715387229,75.08583799,116.45,116.41,7.7447]
[1769715387430,75.08583799,116.45,116.38,162.89822196]
[1769715387737,75.08583799,116.45,116.4,7.7448]
[1769715388336,72.24859906,116.45,116.41,7.7447]
[1769715388837,75.08583799,116.45,116.39,2.83723893]
[1769715389036,75.08583799,116.45,116.39,10.58273893]
[1769715389339,75.08583799,116.45,116.39,2.83723893]
[1769715390337,75.08583799,116.45,116.4,7.7451]
[1769715390740,66.64017952,116.43,116.36,160.03350769]
[1769715390939,66.64017952,116.42,116.36,2.83723893]
[1769715391139,66.64017952,116.42,116.37,2.83723893]
[1769715391339,66.64017952,116.42,116.39,7.746]
[1769715392840,66.64017952,116.42,116.38,7.7468]
[1769715393438,68.18889097,116.4,116.35,2.83723893]
[1769715393943,68.18889097,116.42,116.37,2.83723893]
[1769715394541,6.66754481,116.41,116.37,2.83723893]
[1769715394744,68.18889097,116.45,116.39,50.15794993]
[1769715394945,68.18889097,116.45,116.4,2.83723893]
[1769715395243,68.18889097,116.45,116.39,50.15794993]
[1769715395445,68.18889097,116.45,116.41,2.83723893]
[1769715395842,68.18889097,116.45,116.4,2.83723893]
[1769715396443,68.18889097,116.45,116.41,7.7444]
[1769715396643,71.0261299,116.44,116.37,123.34923893]
[1769715397043,10.3928749,116.47,116.38,7.7467]
[1769715397044,71.0261299,116.43,116.38,7.7467]
[1769715398245,2.83723893,116.42,116.38,7.7467]
[1769715398448,71.0261299,116.42,116.36,7.7475]
[1769715398741,68.18889097,116.41,116.36,7.7475]
[1769715398940,68.18889097,116.41,116.35,2.83723893]
[1769715399145,71.0261299,116.41,116.34,178.44644993]
[1769715399342,120.4571,116.43,116.32,2.83723893]
[1769715399548,71.0261299,116.4,116.33,2.83723893]
[1769715400548,68.18889097,116.4,116.35,2.83723893]
[1769715400950,2.83723893,116.43,116.37,7.7473]
[1769715401544,2.83723893,116.41,116.36,7.748]
[1769715401849,2.83723893,116.42,116.35,123.37393893]
[1769715402546,8.00835676,116.46,116.38,191.34504993]
[1769715402750,8.00835676,116.46,116.39,2.83723893]
[1769715403047,8.00835676,116.46,116.41,7.7448]
[1769715403248,71.0261299,116.47,116.41,7.7448]
[1769715403448,71.0261299,116.46,116.41,7.7448]
[1769715404248,68.18889097,116.46,116.42,7.7441]
[1769715405740,68.18889097,116.49,116.42,68.006411]
[1769715405946,71.0261299,116.51,116.43,191.29454993]
[1769715406147,68.18889097,116.51,116.44,123.27893893]
[1769715406353,68.18889097,116.51,116.45,2.83723893]
[1769715406553,71.0261299,116.51,116.44,123.27893893]
[1769715407350,71.0261299,116.51,116.47,7.7407]
[1769715407951,68.18889097,116.51,116.47,7.7407]
[1769715409050,68.18889097,116.51,116.45,7.7416]
[1769715413560,68.18889097,116.51,116.46,7.7411]
[1769715415960,67.51445242,116.54,116.47,65.48164238]
[1769715416759,67.51445242,116.54,116.45,185.91384238]
[1769715416955,67.51445242,116.54,116.47,7.7407]
[1769715417858,67.51445242,116.52,116.47,7.7407]
[1769715419762,67.51445242,116.52,116.44,185.92094238]
[1769715419963,67.51445242,116.52,116.44,120.4393]
[1769715420259,74.26212254,116.52,116.46,7.7414]
[1769715420462,67.51445242,116.52,116.46,7.7414]
[1769715420855,67.51445242,116.52,116.45,7.742]
[1769715421059,67.51445242,116.5,116.45,7.742]
[1769715421457,67.51445242,116.5,116.46,7.7414]
[1769715421759,67.51445242,116.5,116.41,185.95514238]
[1769715421957,497.04550462,116.54,116.39,120.4955]
[1769715421958,67.51445242,116.48,116.39,185.97714238]
[1769715422158,67.51445242,116.46,116.39,65.48164238]
[1769715423161,67.51445242,116.46,116.39,185.97564238]
[1769715423758,67.51445242,116.46,116.4,7.7449]
[1769715423960,67.51445242,116.44,116.36,186.00514238]
[1769715424468,74.12212706,116.43,116.36,186.00514238]
[1769715424663,67.51445242,116.43,116.36,186.00514238]
[1769715424860,74.12266011,116.42,116.33,120.5546]
[1769715425068,6.74767012,116.43,116.32,186.04914238]
[1769715425069,67.51445242,116.4,116.32,186.04914238]
[1769715425260,67.51445242,116.4,116.33,120.5526]
[1769715425766,74.26212254,116.4,116.32,186.04914238]
[1769715426668,67.51445242,116.4,116.35,7.7485]
[1769715429476,67.51445242,116.4,116.33,73.23114238]
[1769715429872,67.51445242,116.4,116.33,7.7495]
[1769715430174,67.51445242,116.38,116.33,7.7495]
[1769715430374,74.26212254,116.38,116.31,7.751]
[1769715431172,67.51445242,116.38,116.31,120.5733]
[1769715432273,67.51445242,116.38,116.33,7.75]
[1769715435676,2.84103726,116.37,116.33,7.75]
[1769715436686,2.84103726,116.37,116.34,7.7494]
[1769715436893,70.35548968,116.38,116.34,7.7494]
[1769715437189,70.35548968,116.35,116.28,188.93027964]
[1769715437782,70.35548968,116.35,116.29,68.32267964]
[1769715437984,70.35548968,116.35,116.31,7.7514]
[1769715438381,8.00550462,116.42,116.31,68.32267964]
[1769715438588,2.84103726,116.38,116.31,65.48164238]
[1769715438900,2.84103726,116.38,116.31,188.89707964]
[1769715439893,2.84103726,116.37,116.31,188.89707964]
[1769715440387,70.35548968,116.38,116.31,188.89707964]
[1769715440692,2.84103726,116.37,116.32,120.5679]
[1769715441090,7.744,116.43,116.35,7.7487]
[1769715441291,67.51445242,116.41,116.34,186.02874238]
[1769715441484,70.35548968,116.41,116.34,188.86977964]
[1769715441689,2.84103726,116.4,116.34,188.86977964]
[1769715441993,67.51445242,116.41,116.34,188.86977964]
[1769715442194,70.35548968,116.4,116.36,7.7479]
[1769715442692,2.84103726,116.39,116.36,7.7479]
[1769715443287,67.51445242,116.42,116.34,65.48164238]
[1769715443590,67.51445242,116.44,116.37,185.99564238]
[1769715445398,67.51445242,116.44,116.39,7.7455]
[1769715445994,69.99677566,116.46,116.4,68.98585055]
[1769715446197,69.99677566,116.46,116.4,189.46815055]
[1769715446496,69.99677566,116.46,116.41,7.7448]
[1769715447895,69.99677566,116.46,116.39,7.7457]
[1769715448089,69.99677566,116.46,116.37,189.49985055]
[1769715449489,69.99677566,116.46,116.4,7.7454]
[1769715450492,69.99677566,116.46,116.41,7.7445]
[1769715450797,69.99677566,116.49,116.4,189.47115055]
[1769715451095,69.99677566,116.49,116.43,7.7433]
[1769715451594,69.99677566,116.49,116.4,196.22749462]
[1769715452798,77.73637566,116.49,116.4,75.74219462]
[1769715452997,84.49271973,116.49,116.39,120.4942]
[1769715453197,84.49271973,116.49,116.39,189.48005055]
[1769715453592,84.49271973,116.49,116.41,7.7447]
[1769715454201,72.18852464,116.47,116.41,7.7447]
[1769715455194,72.18852464,116.47,116.4,7.7454]
[1769715456304,79.92932464,116.47,116.4,7.7454]
[1769715456500,78.94486871,116.45,116.35,120.5349]
[1769715456702,72.18852464,116.43,116.35,191.91204211]
[1769715458402,72.18852464,116.43,116.36,71.37714211]
[1769715458907,72.18852464,116.43,116.36,7.7476]
[1769715459096,6.59821533,116.42,116.36,7.7476]
[1769715459299,72.18852464,116.41,116.36,7.7476]
[1769715459900,72.18852464,116.41,116.35,7.7487]
[1769715460901,72.18852464,116.41,116.3,422.0684]
[1769715460902,6.60343869,116.4,116.31,71.37714211]
[1769715461102,78.79196333,116.39,116.31,71.37714211]
[1769715461400,78.79196333,116.38,116.31,71.37714211]
[1769715461600,72.18852464,116.38,116.31,7.751]
[1769715461900,72.18852464,116.38,116.3,191.96124211]
[1769715463305,72.18852464,116.38,116.32,7.7507]
[1769715464205,6.61913133,116.37,116.32,7.7507]
[1769715464406,72.18852464,116.38,116.32,7.7507]
[1769715464606,6.61913133,116.37,116.32,7.7507]
[1769715464803,72.18852464,116.38,116.33,7.75]
[1769715465005,6.61913133,116.37,116.33,7.75]
[1769715465207,72.18852464,116.38,116.33,7.75]
[1769715465408,6.61911037,116.37,116.33,7.75]
[1769715465709,2.84096075,116.37,116.33,7.75]
[1769715466305,80.19402926,116.4,116.33,74.21810286]
[1769715466506,161.7267,116.47,116.38,71.37714211]
[1769715466507,8.00550462,116.44,116.38,71.37714211]
[1769715466812,2.84096075,116.46,116.39,71.37714211]
[1769715467013,75.02948539,116.46,116.4,2.84096075]
[1769715467214,75.02948539,116.46,116.39,74.21810286]
[1769715467610,72.18852464,116.46,116.39,71.37714211]
[1769715467811,78.94312042,116.46,116.37,7.7471]
[1769715468010,86.94862504,116.46,116.37,7.7471]
[1769715470316,78.94312042,116.44,116.37,7.7471]
[1769715471819,72.18852464,116.44,116.37,191.89124211]
[1769715473423,72.18852464,116.44,116.39,7.7457]
[1769715473626,72.18852464,116.46,116.38,191.88064211]
[1769715475122,72.18852464,116.46,116.41,7.7446]
[1769715475320,72.18852464,116.46,116.39,67.26862842]
[1769715475520,8.00550462,116.5,116.42,67.26862842]
[1769715475720,68.75191707,116.51,116.42,67.26862842]
[1769715478016,68.75191707,116.51,116.43,74.0232242]
[1769715478618,68.75191707,116.51,116.43,67.26862842]
[1769715479821,6.57608521,116.5,116.43,67.26862842]
[1769715480028,68.75191707,116.5,116.43,67.26862842]
[1769715482326,68.75191707,116.5,116.4,67.26862842]
[1769715482630,68.75191707,116.48,116.4,67.26862842]
[1769715483023,75.32868441,116.47,116.4,67.26862842]
[1769715483224,6.57676734,116.46,116.4,67.26862842]
[1769715483431,68.75191707,116.47,116.41,7.7443]
[1769715484125,6.58072758,116.46,116.42,7.7441]
[1769715484328,68.75191707,116.47,116.4,67.26862842]
[1769715484535,75.33264704,116.46,116.4,67.26862842]
[1769715484735,6.58072997,116.45,116.4,67.26862842]
[1769715484934,68.75191707,116.46,116.4,67.26862842]
[1769715485131,6.58164819,116.45,116.4,67.26862842]
[1769715485341,68.75191707,116.46,116.41,7.7448]
[1769715485740,6.58307505,116.45,116.41,7.7448]
[1769715485934,68.75191707,116.46,116.41,7.7448]
[1769715486134,6.58307505,116.45,116.41,7.7448]
[1769715486339,68.75191707,116.46,116.4,7.7454]
[1769715486546,75.33696941,116.45,116.38,67.26862842]
[1769715486844,6.58505234,116.44,116.38,67.26862842]
[1769715487037,75.33742033,116.43,116.36,187.78772842]
[1769715487337,68.75191707,116.43,116.36,187.78772842]
[1769715487543,75.33863089,116.42,116.34,187.81392842]
[1769715487742,6.58671382,116.41,116.34,187.81392842]
[1769715487946,68.75191707,116.42,116.34,187.81392842]
[1769715488131,6.58753906,116.41,116.36,7.7474]
[1769715488336,68.75191707,116.42,116.34,67.26862842]
[1769715488535,68.75191707,116.42,116.34,7.7494]
[1769715488536,75.34002059,116.41,116.34,7.7494]
[1769715488737,75.34002059,116.4,116.34,7.7494]
[1769715488934,75.34002059,116.39,116.34,7.7494]
[1769715489143,75.34002059,116.38,116.32,7.7505]
[1769715489343,68.75191707,116.38,116.32,7.7505]
[1769715491444,68.75191707,116.38,116.33,7.75]
[1769715491641,68.75191707,116.41,116.33,67.26862842]
[1769715491836,75.33514562,116.4,116.33,7.7495]
[1769715492152,75.33514562,116.39,116.33,7.7495]
[1769715492440,68.75191707,116.38,116.33,7.7495]
[1769715493342,8.00550462,116.41,116.33,67.26862842]
[1769715493539,68.75191707,116.44,116.38,7.7465]
[1769715493846,68.75191707,116.44,116.36,67.26862842]
[1769715494140,68.75191707,116.44,116.36,75.01612842]
[1769715494941,68.75191707,116.42,116.36,7.7475]
[1769715495737,68.75191707,116.42,116.34,75.01742842]
[1769715495943,14.49809578,116.43,116.31,187.84512842]
[1769715495944,68.75191707,116.4,116.31,187.84512842]
[1769715497245,68.75191707,116.4,116.33,7.7499]
[1769715498045,68.75191707,116.38,116.33,7.7499]
[1769715498547,6.75459578,116.41,116.33,187.82452842]
[1769715498548,68.75191707,116.41,116.33,187.82452842]
[1769715498747,68.75191707,116.41,116.33,67.26862842]
[1769715499352,68.75191707,116.44,116.36,120.521]
[1769715499537,68.75191707,116.44,116.39,7.746]
[1769715499849,68.75191707,116.44,116.36,187.78962842]
[1769715500236,75.50651285,116.44,116.37,7.7468]
[1769715501445,75.50651285,116.44,116.35,7.7486]
[1769715501846,83.24971285,116.44,116.35,7.7486]
[1769715502241,83.24971285,116.44,116.36,7.748]
[1769715502442,68.75191707,116.42,116.33,187.82382842]
[1769715503440,68.75191707,116.42,116.35,7.7487]
[1769715503640,75.50651285,116.42,116.33,67.26862842]
[1769715503944,75.50651285,116.42,116.31,187.84472842]
[1769715504746,68.75191707,116.39,116.31,187.84472842]
[1769715505352,68.75191707,116.39,116.31,67.26862842]
[1769715505548,75.51730274,116.39,116.31,67.26862842]
[1769715505753,75.07085088,116.38,116.31,67.26862842]
[1769715505952,68.51979514,116.38,116.31,67.26862842]
[1769715507453,68.51979514,116.38,116.33,7.7501]
[1769715507750,68.51979514,116.38,116.31,67.26862842]
[1769715508152,68.51979514,116.38,116.32,7.7505]
[1769715508355,68.51979514,116.38,116.29,188.54500131]
[1769715509457,75.07058579,116.37,116.31,7.7514]
[1769715509756,68.51979514,116.37,116.31,7.7514]
[1769715511442,68.51979514,116.4,116.33,67.94810131]
[1769715512347,68.51979514,116.4,116.34,7.7494]
[1769715515759,7.7448,116.41,116.31,120.5743]
[1769715515760,65.76443851,116.38,116.31,120.5786]
[1769715516151,65.76443851,116.38,116.31,188.69841897]
[1769715517262,65.76443851,116.38,116.33,7.7501]
[1769715519565,68.6052973,116.38,116.33,7.7501]
[1769715522064,65.76443851,116.38,116.33,7.7501]
[1769715522366,68.6052973,116.38,116.33,7.7501]
[1769715523156,6.55848642,116.37,116.33,7.7501]
[1769715523356,68.6052973,116.38,116.33,7.7501]
[1769715523562,6.55848642,116.37,116.33,7.7501]
[1769715523771,68.6052973,116.38,116.33,7.7501]
[1769715523962,6.55848642,116.37,116.33,7.7501]
[1769715524168,68.6052973,116.38,116.33,7.7501]
[1769715524465,6.56453707,116.37,116.33,7.7501]
[1769715524664,68.6052973,116.38,116.33,7.7501]
[1769715524866,15.75100462,116.4,116.31,70.96067776]
[1769715524867,75.16983437,116.37,116.31,75.87081897]
[1769715525065,6.56453707,116.36,116.31,75.87081897]
[1769715525265,68.6052973,116.37,116.31,75.87081897]
[1769715525571,68.6052973,116.39,116.32,70.96067776]
[1769715525775,6.56441694,116.38,116.32,70.96067776]
[1769715526067,68.6052973,116.39,116.33,2.84085879]
[1769715526263,6.56943578,116.38,116.33,2.84085879]
[1769715526470,68.6052973,116.39,116.33,10.59085879]
[1769715526670,6.56944191,116.38,116.33,10.59085879]
[1769715526968,68.6052973,116.39,116.33,10.59085879]
[1769715526969,68.6052973,116.39,116.33,7.75]
[1769715527164,6.56978406,116.38,116.33,7.75]
[1769715527366,6.56978406,116.37,116.33,7.75]
[1769715527566,65.76443851,116.39,116.33,7.75]
[1769715527766,6.57654341,116.38,116.33,7.75]
[1769715527967,6.57654341,116.37,116.33,7.75]
[1769715528167,65.76443851,116.39,116.33,7.75]
[1769715528371,6.57998192,116.38,116.33,7.75]
[1769715528672,65.76443851,116.39,116.3,120.5854]
[1769715528673,6.57998192,116.37,116.34,75.86891897]
[1769715528869,65.76443851,116.4,116.34,75.86891897]
[1769715529064,72.34405692,116.39,116.34,7.7491]
[1769715529264,6.57961841,116.38,116.34,7.7491]
[1769715529465,6.57961841,116.37,116.34,7.7491]
[1769715529668,65.76443851,116.39,116.34,7.7491]
[1769715529871,6.58410987,116.38,116.34,7.7491]
[1769715530070,72.34854838,116.37,116.32,7.7502]
[1769715530269,6.58410987,116.36,116.32,7.7502]
[1769715530470,6.5887998,116.35,116.32,7.7502]
[1769715530671,6.5887998,116.34,116.32,7.7502]
[1769715530872,65.76443851,116.37,116.32,7.7502]
[1769715531175,6.5891577,116.36,116.32,7.7502]
[1769715531470,6.5891577,116.35,116.32,7.7502]
[1769715531673,5.77e-05,116.34,116.32,7.7502]
[1769715531972,73.76994313,116.39,116.33,7.7499]
[1769715535369,75.706991,116.38,116.33,7.7499]
[1769715536771,75.706991,116.38,116.32,7.7507]
[1769715539277,75.706991,116.38,116.33,7.75]
[1769715541577,67.70148638,116.42,116.35,70.08184319]
[1769715541980,67.70148638,116.45,116.36,70.08184319]
[1769715542277,67.70148638,116.45,116.39,7.7461]
[1769715542477,67.70148638,116.45,116.37,190.59414319]
[1769715542779,67.70148638,116.45,116.38,70.08184319]
[1769715543373,67.70148638,116.45,116.4,7.7452]
[1769715543575,6.52206877,116.44,116.4,7.7452]
[1769715543774,6.52206877,116.43,116.4,7.7452]
[1769715543975,67.70148638,116.45,116.4,7.7452]
[1769715544175,6.52224144,116.44,116.4,7.7452]
[1769715544479,6.52224144,116.43,116.4,7.7452]
[1769715544684,67.70148638,116.45,116.4,7.7452]
[1769715544982,6.51884189,116.44,116.4,7.7452]
[1769715545173,6.51884189,116.43,116.4,7.7452]
[1769715545373,67.70148638,116.45,116.4,7.7452]
[1769715545574,6.51785993,116.44,116.4,7.7452]
[1769715545774,6.51785993,116.43,116.4,7.7452]
[1769715545973,67.70148638,116.45,116.4,7.7452]
[1769715546179,6.51785993,116.44,116.4,7.7452]
[1769715546378,6.51785993,116.43,116.4,7.7452]
[1769715546579,67.70148638,116.45,116.4,7.7452]
[1769715546781,6.51524805,116.44,116.4,7.7452]
[1769715547081,67.70148638,116.45,116.4,7.7452]
[1769715547282,6.51218862,116.44,116.4,7.7452]
[1769715547482,67.70148638,116.45,116.4,7.7452]
[1769715547684,6.51218862,116.44,116.4,7.7452]
[1769715547987,67.70148638,116.45,116.4,7.7452]
[1769715548287,6.51253341,116.44,116.4,7.7452]
[1769715548484,67.70148638,116.45,116.4,7.7452]
[1769715548688,6.51034411,116.44,116.4,7.7452]
[1769715548885,67.70148638,116.45,116.4,7.7452]
[1769715549087,6.51035025,116.44,116.4,7.7452]
[1769715549290,67.70148638,116.45,116.4,7.7452]
[1769715549486,6.50806462,116.44,116.4,7.7452]
[1769715549786,67.70148638,116.45,116.4,7.7452]
[1769715549978,70.53844536,116.47,116.41,10.58175898]
[1769715550181,74.20865423,116.46,116.41,10.58175898]
[1769715550381,67.70148638,116.46,116.41,10.58175898]
[1769715551290,67.70148638,116.46,116.41,2.83695898]
[1769715551582,67.70148638,116.46,116.4,72.91880217]
[1769715552486,67.70148638,116.46,116.4,80.66410217]
[1769715552889,67.70148638,116.46,116.4,10.58225898]
[1769715553086,70.53844536,116.46,116.4,10.58225898]
[1769715553687,67.70148638,116.46,116.4,10.58225898]
[1769715553875,6.49673209,116.45,116.4,10.58225898]
[1769715554080,67.70148638,116.44,116.39,10.58305898]
[1769715554277,67.70148638,116.44,116.39,7.7461]
[1769715555488,67.70148638,116.44,116.39,10.58305898]
[1769715556088,67.70148638,116.44,116.4,10.58235898]
[1769715557792,67.70148638,116.44,116.4,7.7454]
[1769715558689,2.83695898,116.46,116.41,7.7447]
[1769715558886,2.83695898,116.46,116.4,72.91880217]
[1769715559091,70.53844536,116.46,116.4,70.08184319]
[1769715559486,2.83695898,116.45,116.4,70.08184319]
[1769715559687,70.53844536,116.45,116.39,2.83695898]
[1769715560391,70.53844536,116.45,116.4,7.7454]
[1769715561488,70.53844536,116.44,116.4,7.7454]
[1769715561691,67.70148638,116.44,116.4,7.7454]
[1769715562692,67.70148638,116.44,116.39,10.58265898]
[1769715564399,67.70148638,116.44,116.39,7.7457]
[1769715564597,67.70148638,116.44,116.39,10.58265898]
[1769715565598,67.70148638,116.44,116.39,10.58289195]
[1769715566190,70.53867833,116.44,116.39,7.7457]
[1769715566598,67.70148638,116.44,116.39,7.7457]
[1769715568089,72.4418994,116.42,116.36,2.83719195]
[1769715568493,69.60470745,116.42,116.37,2.83719195]
[1769715569199,69.60470745,116.42,116.36,2.83719195]
[1769715569401,69.60470745,116.42,116.38,7.7467]
[1769715569699,72.4418994,116.42,116.36,2.83719195]
[1769715570001,69.60470745,116.41,116.36,2.83719195]
[1769715570800,72.4418994,116.41,116.36,2.83719195]
[1769715571392,72.4418994,116.41,116.36,10.58459195]
[1769715571591,69.60470745,116.41,116.36,7.7474]
[1769715573201,72.4418994,116.41,116.36,7.7474]
[1769715576696,73.72499213,116.37,116.32,70.30185136]
[1769715576995,73.72499213,116.37,116.3,73.13904331]
[1769715576996,2.83719195,116.36,116.3,73.13904331]
[1769715577702,73.72499213,116.36,116.32,7.7502]
[1769715582812,2.83719195,116.35,116.32,7.7502]
[1769715583102,2.83719195,116.35,116.3,193.72594331]
[1769715583103,73.72499213,116.34,116.3,7.752]
[1769715583398,2.83719195,116.33,116.28,70.30185136]
[1769715583897,2.83719195,116.32,116.29,7.7527]
[1769715586491,2.83719195,116.31,116.27,7.7536]
[1769715587404,73.72499213,116.32,116.28,7.7531]
[1769715588400,2.83719195,116.32,116.28,7.7531]
[1769715588599,75.66091587,116.33,116.29,7.7526]
[1769715588800,69.17868084,116.33,116.29,7.7526]
[1769715589094,2.83719195,116.32,116.29,7.7526]
[1769715589495,69.17868084,116.32,116.26,124.37509243]
[1769715589702,2.83719195,116.31,116.26,3.74879243]
[1769715591108,69.17868084,116.32,116.26,3.74879243]
[1769715591299,69.17868084,116.32,116.28,7.7534]
[1769715592504,69.17868084,116.31,116.28,7.7534]
[1769715593412,2.83719195,116.29,116.26,3.74879243]
[1769715593620,69.17868084,116.28,116.21,194.53368985]
[1769715593912,69.17868084,116.28,116.22,71.0175979]
[1769715594809,69.17868084,116.28,116.22,73.85478985]
[1769715595301,71.79339392,116.3,116.24,2.83719195]
[1769715595613,71.79339392,116.3,116.23,72.34698942]
[1769715595815,71.79339392,116.3,116.24,72.34698942]
[1769715596109,71.79339392,116.29,116.23,2.83719195]
[1769715597212,71.79339392,116.29,116.22,193.01728942]
[1769715597511,2.83719195,116.26,116.22,7.7569]
[1769715597711,71.79339392,116.29,116.22,193.01818942]
[1769715597911,68.95620197,116.29,116.23,72.34698942]
[1769715598111,68.95620197,116.32,116.26,2.83719195]
[1769715598821,71.79339392,116.32,116.27,7.7539]
[1769715599008,71.79339392,116.31,116.25,2.83719195]
[1769715599204,68.95620197,116.35,116.28,7.7534]
[1769715599514,68.95620197,116.33,116.28,7.7534]
[1769715599714,68.95620197,116.33,116.28,10.59059195]
[1769715600809,71.79339392,116.35,116.29,2.83719195]